[Event "Late-Titled-Tuesday-Blitz-May-14-2024"]
[Site "Chess.com"]
[Date "2024.05.14"]
[Round "1"]
[White "Squirlolz"]
[Black "shirovin"]
[Result "1-0"]
[WhiteElo "2570"]
[BlackElo "2105"]
[TimeControl "180+1"]
[EndTime "14:06:53 PDT"]
[Termination "Squirlolz won by resignation"]

1. Nf3 {[%clk 0:02:56.9]} 1... Nf6 {[%clk 0:02:58.9]} 2. g3 {[%clk 0:02:57.8]}
2... e6 {[%clk 0:02:57]} 3. Bg2 {[%clk 0:02:58.4]} 3... d5 {[%clk 0:02:57.4]} 4.
O-O {[%clk 0:02:59.3]} 4... c5 {[%clk 0:02:56.4]} 5. c4 {[%clk 0:02:59.5]} 5...
d4 {[%clk 0:02:55.7]} 6. e3 {[%clk 0:02:59.4]} 6... Nc6 {[%clk 0:02:54.9]} 7.
exd4 {[%clk 0:03:00]} 7... cxd4 {[%clk 0:02:54.3]} 8. d3 {[%clk 0:03:00.9]} 8...
Be7 {[%clk 0:02:51.2]} 9. Bg5 {[%clk 0:03:00.6]} 9... h6 {[%clk 0:02:46.5]} 10.
Bxf6 {[%clk 0:03:00.7]} 10... Bxf6 {[%clk 0:02:46.2]} 11. Nbd2 {[%clk
0:02:57.3]} 11... O-O {[%clk 0:02:43.4]} 12. Rb1 {[%clk 0:02:57.7]} 12... a5
{[%clk 0:02:39.5]} 13. a3 {[%clk 0:02:58.3]} 13... a4 {[%clk 0:02:39.3]} 14. Re1
{[%clk 0:02:54.3]} 14... e5 {[%clk 0:02:37]} 15. b4 {[%clk 0:02:45.8]} 15...
axb3 {[%clk 0:02:35.6]} 16. Rxb3 {[%clk 0:02:46.5]} 16... Na5 {[%clk 0:02:33]}
17. Rb2 {[%clk 0:02:40.8]} 17... Bf5 {[%clk 0:02:31.1]} 18. Ne4 {[%clk
0:02:40.2]} 18... Bxe4 {[%clk 0:02:27]} 19. Rxe4 {[%clk 0:02:39.8]} 19... Re8
{[%clk 0:02:26.8]} 20. Rb5 {[%clk 0:02:36.4]} 20... Qc7 {[%clk 0:02:12.9]} 21.
Qb1 {[%clk 0:02:30.5]} 21... Rab8 {[%clk 0:02:11.6]} 22. Nd2 {[%clk 0:02:19.1]}
22... Nc6 {[%clk 0:01:48.8]} 23. c5 {[%clk 0:02:19.5]} 23... Ne7 {[%clk
0:01:41.1]} 24. Re2 {[%clk 0:02:12.1]} 24... Nc6 {[%clk 0:01:33.7]} 25. Nc4
{[%clk 0:02:08.5]} 25... Be7 {[%clk 0:01:20.4]} 26. Nb6 {[%clk 0:01:44.5]} 26...
Na7 {[%clk 0:01:00]} 27. Nd5 {[%clk 0:01:41.7]} 27... Qd7 {[%clk 0:00:58.5]} 28.
Ra5 {[%clk 0:01:12.1]} 28... Nc6 {[%clk 0:00:49.9]} 29. Rb5 {[%clk 0:01:12.2]}
29... Na7 {[%clk 0:00:49.4]} 30. Nxe7+ {[%clk 0:01:07.2]} 30... Rxe7 {[%clk
0:00:47.8]} 31. Rb6 {[%clk 0:01:07.2]} 31... Nc8 {[%clk 0:00:42.6]} 32. c6
{[%clk 0:01:03.5]} 32... Qc7 {[%clk 0:00:36.3]} 33. Rxb7 {[%clk 0:01:02.4]}
33... Rxb7 {[%clk 0:00:24.1]} 34. cxb7 {[%clk 0:01:02]} 34... Nb6 {[%clk
0:00:14.8]} 35. Rc2 {[%clk 0:00:52.3]} 35... Qd8 {[%clk 0:00:14]} 36. Rc8 {[%clk
0:00:50.3]} 36... Nxc8 {[%clk 0:00:12.8]} 37. b8=Q {[%clk 0:00:50.6]} 37... Rd7
{[%clk 0:00:10.6]} 38. Q8b3 {[%clk 0:00:50.2]} 38... Nd6 {[%clk 0:00:09.8]} 39.
a4 {[%clk 0:00:48.5]} 39... Rb7 {[%clk 0:00:08.4]} 40. Bxb7 {[%clk 0:00:47.8]}
40... Nxb7 {[%clk 0:00:07.7]} 41. Qxb7 {[%clk 0:00:48.7]} 41... e4 {[%clk
0:00:07.5]} 42. Qb8 {[%clk 0:00:48.9]} 42... Qxb8 {[%clk 0:00:06.9]} 43. Qxb8+
{[%clk 0:00:49.8]} 43... Kh7 {[%clk 0:00:07]} 44. dxe4 {[%clk 0:00:50.7]} 44...
d3 {[%clk 0:00:06.2]} 45. Qd8 {[%clk 0:00:51.6]} 45... d2 {[%clk 0:00:06.2]} 46.
Qxd2 {[%clk 0:00:52.5]} 1-0

[Event "Late-Titled-Tuesday-Blitz-May-14-2024"]
[Site "Chess.com"]
[Date "2024.05.14"]
[Round "1"]
[White "ZachHKL"]
[Black "OriTaichman"]
[Result "0-1"]
[WhiteElo "2305"]
[BlackElo "2619"]
[TimeControl "180+1"]
[EndTime "14:06:56 PDT"]
[Termination "OriTaichman won by checkmate"]

1. c4 {[%clk 0:03:00.9]} 1... g6 {[%clk 0:02:58.9]} 2. g3 {[%clk 0:03:00.9]}
2... Bg7 {[%clk 0:02:59.2]} 3. Bg2 {[%clk 0:03:01.2]} 3... Nf6 {[%clk
0:03:00.1]} 4. Nf3 {[%clk 0:03:01.5]} 4... O-O {[%clk 0:03:00.8]} 5. O-O {[%clk
0:03:02.1]} 5... d6 {[%clk 0:03:00.8]} 6. d4 {[%clk 0:03:01.9]} 6... Nc6 {[%clk
0:03:01]} 7. b3 {[%clk 0:03:02.1]} 7... e5 {[%clk 0:02:58.1]} 8. dxe5 {[%clk
0:03:01.5]} 8... dxe5 {[%clk 0:02:45.7]} 9. Bb2 {[%clk 0:02:58.2]} 9... e4
{[%clk 0:02:45.8]} 10. Nfd2 {[%clk 0:02:53.4]} 10... e3 {[%clk 0:02:45.5]} 11.
fxe3 {[%clk 0:02:54.3]} 11... Ng4 {[%clk 0:02:34]} 12. Bxg7 {[%clk 0:02:48.8]}
12... Nxe3 {[%clk 0:02:12.7]} 13. Qc1 {[%clk 0:02:38.8]} 13... Kxg7 {[%clk
0:01:37.3]} 14. Rf4 {[%clk 0:02:22.1]} 14... Nxg2 {[%clk 0:01:20.5]} 15. Kxg2
{[%clk 0:02:09.7]} 15... b6 {[%clk 0:01:15.1]} 16. Qb2+ {[%clk 0:02:08]} 16...
Kg8 {[%clk 0:01:15]} 17. Ne4 {[%clk 0:02:05.1]} 17... f5 {[%clk 0:01:15.2]} 18.
Nec3 {[%clk 0:01:34.1]} 18... Bb7 {[%clk 0:01:14.6]} 19. Kg1 {[%clk 0:01:33.8]}
19... g5 {[%clk 0:00:46.8]} 20. Rf2 {[%clk 0:01:29.5]} 20... Qd4 {[%clk
0:00:40]} 21. Na3 {[%clk 0:01:05.6]} 21... f4 {[%clk 0:00:31.6]} 22. Nc2 {[%clk
0:00:59.5]} 22... Qc5 {[%clk 0:00:18.1]} 23. Ne4 {[%clk 0:00:41.5]} 23... Qe7
{[%clk 0:00:18.1]} 24. Nc3 {[%clk 0:00:28.8]} 24... fxg3 {[%clk 0:00:17]} 25.
Rxf8+ {[%clk 0:00:23.8]} 25... Rxf8 {[%clk 0:00:17.9]} 26. hxg3 {[%clk
0:00:24.2]} 26... Qc5+ {[%clk 0:00:17.2]} 27. e3 {[%clk 0:00:22.9]} 27... Ne5
{[%clk 0:00:17.3]} 28. Nd4 {[%clk 0:00:17.9]} 28... Nf3+ {[%clk 0:00:16]} 29.
Nxf3 {[%clk 0:00:17.9]} 29... Qxe3+ {[%clk 0:00:15.8]} 30. Kg2 {[%clk
0:00:10.8]} 30... Qxf3+ {[%clk 0:00:15]} 31. Kh2 {[%clk 0:00:09.7]} 31... Qh5+
{[%clk 0:00:14.7]} 32. Kg1 {[%clk 0:00:09.4]} 32... Qh1# {[%clk 0:00:14.9]} 0-1

[Event "Late-Titled-Tuesday-Blitz-May-14-2024"]
[Site "Chess.com"]
[Date "2024.05.14"]
[Round "1"]
[White "ShahMatKanal"]
[Black "SahaNeelash"]
[Result "0-1"]
[WhiteElo "2399"]
[BlackElo "2729"]
[TimeControl "180+1"]
[EndTime "14:06:59 PDT"]
[Termination "SahaNeelash won by resignation"]

1. d4 {[%clk 0:02:54.9]} 1... d6 {[%clk 0:02:59.5]} 2. Nf3 {[%clk 0:02:50.6]}
2... Nd7 {[%clk 0:02:59.1]} 3. Nc3 {[%clk 0:02:44.8]} 3... g6 {[%clk 0:02:59.1]}
4. e4 {[%clk 0:02:43.3]} 4... Bg7 {[%clk 0:02:58.9]} 5. Bc4 {[%clk 0:02:43.5]}
5... e6 {[%clk 0:02:59.1]} 6. O-O {[%clk 0:02:42.4]} 6... a6 {[%clk 0:02:59.3]}
7. Be3 {[%clk 0:02:38.2]} 7... b5 {[%clk 0:02:56.8]} 8. Bd3 {[%clk 0:02:29.6]}
8... Bb7 {[%clk 0:02:56.6]} 9. a3 {[%clk 0:02:28.3]} 9... Ne7 {[%clk 0:02:56.3]}
10. Qd2 {[%clk 0:02:26.8]} 10... O-O {[%clk 0:02:48.3]} 11. Bh6 {[%clk
0:02:25.3]} 11... Re8 {[%clk 0:02:47.5]} 12. Bxg7 {[%clk 0:02:25.2]} 12... Kxg7
{[%clk 0:02:48.4]} 13. Rae1 {[%clk 0:02:24.2]} 13... c5 {[%clk 0:02:40.7]} 14.
dxc5 {[%clk 0:02:13.7]} 14... Nxc5 {[%clk 0:02:41.6]} 15. Nd4 {[%clk 0:02:08.3]}
15... e5 {[%clk 0:02:29.7]} 16. Nde2 {[%clk 0:01:31.3]} 16... d5 {[%clk
0:02:20.2]} 17. Ng3 {[%clk 0:01:23.9]} 17... dxe4 {[%clk 0:02:09]} 18. Ngxe4
{[%clk 0:01:13]} 18... Nxd3 {[%clk 0:01:58.3]} 19. cxd3 {[%clk 0:01:12.9]} 19...
Rc8 {[%clk 0:01:57.6]} 20. f4 {[%clk 0:01:09.4]} 20... Nf5 {[%clk 0:01:40.4]}
21. fxe5 {[%clk 0:01:04.9]} 21... Rxe5 {[%clk 0:01:41.3]} 22. Kh1 {[%clk
0:01:02.5]} 22... Qh4 {[%clk 0:01:25.8]} 23. Rf3 {[%clk 0:00:51.1]} 23... Rd8
{[%clk 0:01:12.2]} 24. Rh3 {[%clk 0:00:42.5]} 24... Qe7 {[%clk 0:01:11.2]} 25.
Qe2 {[%clk 0:00:27.5]} 25... h5 {[%clk 0:01:02.3]} 26. Qf1 {[%clk 0:00:21.4]}
26... Re8 {[%clk 0:00:52.7]} 27. Rc1 {[%clk 0:00:18.6]} 27... Qd8 {[%clk
0:00:46.8]} 28. Rf3 {[%clk 0:00:18.2]} 28... R8e7 {[%clk 0:00:40.6]} 29. b4
{[%clk 0:00:17.4]} 29... Nd4 {[%clk 0:00:40]} 30. Rf4 {[%clk 0:00:16.5]} 30...
f5 {[%clk 0:00:40.2]} 31. Ng5 {[%clk 0:00:15]} 31... Rd7 {[%clk 0:00:36.9]} 32.
Rxd4 {[%clk 0:00:14]} 32... Rxd4 {[%clk 0:00:35.7]} 33. Nf3 {[%clk 0:00:13.3]}
33... Bxf3 {[%clk 0:00:35.2]} 34. Qxf3 {[%clk 0:00:14.2]} 34... Rxd3 {[%clk
0:00:32.1]} 35. Qb7+ {[%clk 0:00:14.1]} 35... Re7 {[%clk 0:00:32.5]} 36. Qc6
{[%clk 0:00:09.5]} 36... Rc7 {[%clk 0:00:29.6]} 0-1

[Event "Late-Titled-Tuesday-Blitz-May-14-2024"]
[Site "Chess.com"]
[Date "2024.05.14"]
[Round "1"]
[White "Akhayan"]
[Black "Oneofmyturns"]
[Result "0-1"]
[WhiteElo "2452"]
[BlackElo "2810"]
[TimeControl "180+1"]
[EndTime "14:07:01 PDT"]
[Termination "Oneofmyturns won by resignation"]

1. e4 {[%clk 0:03:00.9]} 1... e5 {[%clk 0:02:59]} 2. Bc4 {[%clk 0:02:59.9]} 2...
Nf6 {[%clk 0:02:58.2]} 3. d3 {[%clk 0:03:00.3]} 3... c6 {[%clk 0:02:53.6]} 4.
Nf3 {[%clk 0:02:59.8]} 4... d5 {[%clk 0:02:50.7]} 5. Bb3 {[%clk 0:03:00.3]} 5...
Bd6 {[%clk 0:02:33.4]} 6. O-O {[%clk 0:02:59.1]} 6... O-O {[%clk 0:02:31.8]} 7.
exd5 {[%clk 0:02:59.1]} 7... cxd5 {[%clk 0:02:32.7]} 8. Re1 {[%clk 0:02:58.7]}
8... Nc6 {[%clk 0:02:26.9]} 9. Bg5 {[%clk 0:02:58.4]} 9... Be6 {[%clk
0:02:27.5]} 10. Nc3 {[%clk 0:02:57.9]} 10... Bc7 {[%clk 0:02:19.3]} 11. Bxf6
{[%clk 0:02:53.5]} 11... gxf6 {[%clk 0:02:19.9]} 12. Nh4 {[%clk 0:02:46.6]}
12... Kh8 {[%clk 0:02:16.4]} 13. Qh5 {[%clk 0:02:45.3]} 13... Ne7 {[%clk
0:02:13.5]} 14. Qh6 {[%clk 0:02:30]} 14... Ng8 {[%clk 0:01:57.5]} 15. Qh5 {[%clk
0:02:25.1]} 15... Ne7 {[%clk 0:01:40.2]} 16. Qh6 {[%clk 0:02:24.7]} 16... Ng6
{[%clk 0:01:39.5]} 17. Ne2 {[%clk 0:01:59.4]} 17... f5 {[%clk 0:01:30.4]} 18.
Nf3 {[%clk 0:01:51.2]} 18... Qf6 {[%clk 0:01:10.5]} 19. Ng3 {[%clk 0:01:45.7]}
19... Qg7 {[%clk 0:01:07.7]} 20. Qd2 {[%clk 0:01:18.5]} 20... Nf4 {[%clk
0:01:05.5]} 21. d4 {[%clk 0:01:05.5]} 21... e4 {[%clk 0:01:03.7]} 22. Ne5 {[%clk
0:01:05.6]} 22... Bxe5 {[%clk 0:01:02.4]} 23. dxe5 {[%clk 0:01:06.2]} 23... Qxe5
{[%clk 0:01:03.3]} 24. Rad1 {[%clk 0:01:02.4]} 24... Rfd8 {[%clk 0:01:01.7]} 25.
Qb4 {[%clk 0:00:52.4]} 25... Rd7 {[%clk 0:00:58.3]} 26. Ba4 {[%clk 0:00:51.9]}
26... Rc7 {[%clk 0:00:58.7]} 27. Qa5 {[%clk 0:00:32.5]} 27... b6 {[%clk
0:00:58.2]} 28. Qb4 {[%clk 0:00:31.3]} 28... Rg8 {[%clk 0:00:57.9]} 29. Bb3
{[%clk 0:00:30.1]} 29... h5 {[%clk 0:00:57.7]} 30. h4 {[%clk 0:00:27.4]} 30...
Rc5 {[%clk 0:00:57.3]} 31. Qa4 {[%clk 0:00:26.1]} 31... a5 {[%clk 0:00:54]} 32.
c3 {[%clk 0:00:26]} 32... Qf6 {[%clk 0:00:51.6]} 33. Bc2 {[%clk 0:00:24.5]}
33... Qxh4 {[%clk 0:00:48.7]} 34. Qb3 {[%clk 0:00:24.9]} 34... b5 {[%clk
0:00:35.1]} 35. Qa3 {[%clk 0:00:24.7]} 35... b4 {[%clk 0:00:35.6]} 36. Qa4
{[%clk 0:00:22.5]} 36... Qg5 {[%clk 0:00:35.5]} 37. cxb4 {[%clk 0:00:22.4]}
37... axb4 {[%clk 0:00:35.1]} 38. Qxb4 {[%clk 0:00:23]} 38... Rxc2 {[%clk
0:00:34.6]} 39. Qd4+ {[%clk 0:00:22.9]} 39... Kh7 {[%clk 0:00:33.9]} 40. Rc1
{[%clk 0:00:22.5]} 40... Rxc1 {[%clk 0:00:33.1]} 41. Rxc1 {[%clk 0:00:23.1]}
41... h4 {[%clk 0:00:33.5]} 42. Rc7 {[%clk 0:00:20.8]} 42... hxg3 {[%clk
0:00:32.6]} 43. fxg3 {[%clk 0:00:21]} 43... Ne2+ {[%clk 0:00:29.3]} 0-1

[Event "Late-Titled-Tuesday-Blitz-May-14-2024"]
[Site "Chess.com"]
[Date "2024.05.14"]
[Round "1"]
[White "DIMONBANAN"]
[Black "ChEsper99"]
[Result "1-0"]
[WhiteElo "2606"]
[BlackElo "2253"]
[TimeControl "180+1"]
[EndTime "14:07:02 PDT"]
[Termination "DIMONBANAN won by checkmate"]

1. e4 {[%clk 0:03:00.9]} 1... c6 {[%clk 0:02:57.1]} 2. d4 {[%clk 0:03:00.4]}
2... d5 {[%clk 0:02:56.9]} 3. exd5 {[%clk 0:03:00.8]} 3... cxd5 {[%clk
0:02:57.8]} 4. Bd3 {[%clk 0:03:01.2]} 4... Nc6 {[%clk 0:02:54.7]} 5. c3 {[%clk
0:03:01.7]} 5... Nf6 {[%clk 0:02:54]} 6. Bf4 {[%clk 0:03:01.8]} 6... Bg4 {[%clk
0:02:50.4]} 7. Qb3 {[%clk 0:03:02.1]} 7... Qd7 {[%clk 0:02:48.2]} 8. Nd2 {[%clk
0:03:02.2]} 8... e6 {[%clk 0:02:48.4]} 9. Ngf3 {[%clk 0:03:02.6]} 9... Bd6
{[%clk 0:02:44.7]} 10. Bxd6 {[%clk 0:03:01.3]} 10... Qxd6 {[%clk 0:02:44.7]} 11.
h3 {[%clk 0:02:56]} 11... Bh5 {[%clk 0:02:40.9]} 12. O-O {[%clk 0:02:54]} 12...
O-O {[%clk 0:02:39.9]} 13. Rae1 {[%clk 0:02:34.9]} 13... Nd7 {[%clk 0:02:30.2]}
14. Ng5 {[%clk 0:01:56.3]} 14... Bg6 {[%clk 0:02:26.4]} 15. Bxg6 {[%clk
0:01:53.2]} 15... hxg6 {[%clk 0:02:27.3]} 16. Ndf3 {[%clk 0:01:51.5]} 16... b5
{[%clk 0:02:21.4]} 17. Qxb5 {[%clk 0:01:44.8]} 17... Rab8 {[%clk 0:02:13.6]} 18.
Qe2 {[%clk 0:01:44.6]} 18... a5 {[%clk 0:02:05.4]} 19. h4 {[%clk 0:01:28.3]}
19... a4 {[%clk 0:01:51.8]} 20. Ne5 {[%clk 0:01:19.3]} 20... Ndxe5 {[%clk
0:01:41.2]} 21. dxe5 {[%clk 0:01:19.2]} 21... Qe7 {[%clk 0:01:41.7]} 22. f4
{[%clk 0:01:14.7]} 22... d4 {[%clk 0:01:22.8]} 23. h5 {[%clk 0:01:07]} 23...
dxc3 {[%clk 0:01:21]} 24. bxc3 {[%clk 0:01:07.9]} 24... Qc5+ {[%clk 0:00:56]}
25. Kh2 {[%clk 0:01:01.5]} 25... Ne7 {[%clk 0:00:30]} 26. hxg6 {[%clk 0:00:50]}
26... Nxg6 {[%clk 0:00:30.9]} 27. Qh5 {[%clk 0:00:50.4]} 27... Rfd8 {[%clk
0:00:23.5]} 28. Nxf7 {[%clk 0:00:18]} 28... Kxf7 {[%clk 0:00:18.8]} 29. f5
{[%clk 0:00:18.4]} 29... exf5 {[%clk 0:00:18.7]} 30. Rxf5+ {[%clk 0:00:17.2]}
30... Kg8 {[%clk 0:00:16.7]} 31. Qxg6 {[%clk 0:00:16.4]} 31... Rf8 {[%clk
0:00:01.9]} 32. Qe6+ {[%clk 0:00:15.9]} 32... Kh8 {[%clk 0:00:02]} 33. Rh5#
{[%clk 0:00:16]} 1-0

[Event "Late-Titled-Tuesday-Blitz-May-14-2024"]
[Site "Chess.com"]
[Date "2024.05.14"]
[Round "1"]
[White "Naoki"]
[Black "SoCalJuniorChess"]
[Result "1-0"]
[WhiteElo "2591"]
[BlackElo "2220"]
[TimeControl "180+1"]
[EndTime "14:07:02 PDT"]
[Termination "Naoki won by resignation"]

1. e4 {[%clk 0:02:42.5]} 1... d5 {[%clk 0:02:59.7]} 2. exd5 {[%clk 0:02:16.8]}
2... Qxd5 {[%clk 0:03:00.6]} 3. d4 {[%clk 0:02:16.9]} 3... e5 {[%clk 0:03:00]}
4. dxe5 {[%clk 0:02:10.7]} 4... Qxd1+ {[%clk 0:02:59.2]} 5. Kxd1 {[%clk
0:02:11.3]} 5... Nc6 {[%clk 0:02:59.3]} 6. f4 {[%clk 0:02:11]} 6... Bf5 {[%clk
0:02:50.1]} 7. c3 {[%clk 0:02:09.5]} 7... O-O-O+ {[%clk 0:02:49.9]} 8. Ke1
{[%clk 0:02:08.7]} 8... f6 {[%clk 0:02:48.6]} 9. Nf3 {[%clk 0:02:05.2]} 9...
fxe5 {[%clk 0:02:40.4]} 10. fxe5 {[%clk 0:02:06.1]} 10... Nxe5 {[%clk 0:02:17]}
11. Nxe5 {[%clk 0:01:37.1]} 11... Re8 {[%clk 0:02:16.7]} 12. Bf4 {[%clk
0:01:31.9]} 12... Bd6 {[%clk 0:02:16.2]} 13. Nd2 {[%clk 0:01:28.9]} 13... Bxe5
{[%clk 0:02:15]} 14. Bxe5 {[%clk 0:01:29.8]} 14... Rxe5+ {[%clk 0:02:14.7]} 15.
Kf2 {[%clk 0:01:30.6]} 15... Nf6 {[%clk 0:02:13]} 16. Nf3 {[%clk 0:01:21.2]}
16... Ne4+ {[%clk 0:02:10.2]} 17. Kg1 {[%clk 0:01:20.3]} 17... Re7 {[%clk
0:02:00.2]} 18. Nd4 {[%clk 0:01:09.4]} 18... Bd7 {[%clk 0:01:55.8]} 19. Bd3
{[%clk 0:01:07.7]} 19... Nf6 {[%clk 0:01:45.5]} 20. h3 {[%clk 0:01:05.6]} 20...
a6 {[%clk 0:01:44.9]} 21. Kh2 {[%clk 0:01:03.8]} 21... c5 {[%clk 0:01:39.8]} 22.
Nf5 {[%clk 0:01:00.7]} 22... Bxf5 {[%clk 0:01:38.4]} 23. Bxf5+ {[%clk
0:01:01.6]} 23... Kc7 {[%clk 0:01:38.3]} 24. Rhd1 {[%clk 0:00:56.2]} 24... Re2
{[%clk 0:01:35.2]} 25. b4 {[%clk 0:00:53.3]} 25... Rf2 {[%clk 0:01:21.3]} 26.
Bd3 {[%clk 0:00:47.9]} 26... Nd5 {[%clk 0:01:14.5]} 27. Rac1 {[%clk 0:00:38.6]}
27... Nf4 {[%clk 0:01:05.8]} 28. Be4 {[%clk 0:00:38.8]} 28... Re8 {[%clk
0:00:59.3]} 29. Bf3 {[%clk 0:00:39]} 29... Rxa2 {[%clk 0:00:52.1]} 30. bxc5
{[%clk 0:00:39.4]} 30... Re5 {[%clk 0:00:44.3]} 31. Rb1 {[%clk 0:00:39.1]} 31...
Rxc5 {[%clk 0:00:28.6]} 32. Rxb7+ {[%clk 0:00:38.7]} 32... Kc8 {[%clk
0:00:28.8]} 33. Rxg7 {[%clk 0:00:30.1]} 33... h5 {[%clk 0:00:14.1]} 34. Bb7+
{[%clk 0:00:20.9]} 34... Kb8 {[%clk 0:00:12.2]} 35. Rd8+ {[%clk 0:00:21]} 35...
Ka7 {[%clk 0:00:11.2]} 36. Bd5+ {[%clk 0:00:21.5]} 36... Kb6 {[%clk 0:00:10.5]}
37. Bxa2 {[%clk 0:00:21.8]} 1-0

[Event "Late-Titled-Tuesday-Blitz-May-14-2024"]
[Site "Chess.com"]
[Date "2024.05.14"]
[Round "1"]
[White "leclash"]
[Black "Nouali_Mohamed"]
[Result "0-1"]
[WhiteElo "2284"]
[BlackElo "2610"]
[TimeControl "180+1"]
[EndTime "14:07:04 PDT"]
[Termination "Nouali_Mohamed won on time"]

1. d4 {[%clk 0:02:42.8]} 1... Nf6 {[%clk 0:02:59.9]} 2. c4 {[%clk 0:02:41.6]}
2... g6 {[%clk 0:03:00.3]} 3. Nc3 {[%clk 0:02:38.7]} 3... Bg7 {[%clk 0:03:00.8]}
4. e4 {[%clk 0:02:39]} 4... O-O {[%clk 0:03:01.3]} 5. Nge2 {[%clk 0:02:39.6]}
5... d6 {[%clk 0:03:01.5]} 6. f3 {[%clk 0:02:39.9]} 6... c5 {[%clk 0:03:01.9]}
7. d5 {[%clk 0:02:39.7]} 7... a6 {[%clk 0:03:00.3]} 8. a4 {[%clk 0:02:39.6]}
8... e6 {[%clk 0:03:00.1]} 9. Ng3 {[%clk 0:02:38.2]} 9... exd5 {[%clk 0:02:59]}
10. cxd5 {[%clk 0:02:39.1]} 10... h5 {[%clk 0:02:58.7]} 11. Be2 {[%clk
0:02:38.6]} 11... h4 {[%clk 0:02:58.6]} 12. Nf1 {[%clk 0:02:38.4]} 12... Nh5
{[%clk 0:02:57.9]} 13. f4 {[%clk 0:02:37]} 13... f5 {[%clk 0:02:53.3]} 14. Bxh5
{[%clk 0:02:32.5]} 14... gxh5 {[%clk 0:02:54.2]} 15. Qxh5 {[%clk 0:02:24]} 15...
fxe4 {[%clk 0:02:54.1]} 16. Ne3 {[%clk 0:02:22.8]} 16... Nd7 {[%clk 0:02:50.8]}
17. Nf5 {[%clk 0:02:04]} 17... Ne5 {[%clk 0:02:17.9]} 18. Nxg7 {[%clk 0:01:38]}
18... Nd3+ {[%clk 0:02:16.5]} 19. Kd2 {[%clk 0:01:25.5]} 19... Kxg7 {[%clk
0:02:15.8]} 20. Nxe4 {[%clk 0:01:12.1]} 20... Nxf4 {[%clk 0:02:15.9]} 21. Qg5+
{[%clk 0:01:09.3]} 21... Qxg5 {[%clk 0:02:15.5]} 22. Nxg5 {[%clk 0:01:10.2]}
22... Nxd5 {[%clk 0:02:05.6]} 23. b3 {[%clk 0:01:00.4]} 23... Rf2+ {[%clk
0:02:01.8]} 24. Ke1 {[%clk 0:00:53.3]} 24... Rxg2 {[%clk 0:02:00.4]} 25. Nf3
{[%clk 0:00:52.2]} 25... Bh3 {[%clk 0:01:52.2]} 26. Rg1 {[%clk 0:00:45.2]} 26...
Re8+ {[%clk 0:01:52]} 27. Kf1 {[%clk 0:00:42]} 27... Re2 {[%clk 0:01:32.1]} 28.
Nxh4 {[%clk 0:00:32.8]} 28... Rf2+ {[%clk 0:01:11.1]} 29. Ke1 {[%clk 0:00:29.5]}
29... Re2+ {[%clk 0:01:11.2]} 30. Kf1 {[%clk 0:00:26]} 30... Rxg1+ {[%clk
0:00:53.9]} 31. Kxe2 {[%clk 0:00:26.3]} 31... Kf7 {[%clk 0:00:35.2]} 32. Bb2
{[%clk 0:00:25.9]} 32... Rg4 {[%clk 0:00:30.3]} 0-1

[Event "Late-Titled-Tuesday-Blitz-May-14-2024"]
[Site "Chess.com"]
[Date "2024.05.14"]
[Round "1"]
[White "A4RookA3"]
[Black "NovakCabarkapa"]
[Result "0-1"]
[WhiteElo "2417"]
[BlackElo "2748"]
[TimeControl "180+1"]
[EndTime "14:07:05 PDT"]
[Termination "NovakCabarkapa won by resignation"]

1. e4 {[%clk 0:03:00.6]} 1... a6 {[%clk 0:02:53.7]} 2. d4 {[%clk 0:02:57]} 2...
e6 {[%clk 0:02:53.9]} 3. Nf3 {[%clk 0:02:53]} 3... d5 {[%clk 0:02:53.8]} 4. exd5
{[%clk 0:02:53.9]} 4... exd5 {[%clk 0:02:54.7]} 5. Bd3 {[%clk 0:02:54.3]} 5...
Nc6 {[%clk 0:02:54.9]} 6. h3 {[%clk 0:02:47]} 6... Nb4 {[%clk 0:02:54.2]} 7. O-O
{[%clk 0:02:43.8]} 7... Nxd3 {[%clk 0:02:53.4]} 8. Qxd3 {[%clk 0:02:44.7]} 8...
Be7 {[%clk 0:02:52.3]} 9. Ne5 {[%clk 0:02:34.2]} 9... Nf6 {[%clk 0:02:50.3]} 10.
Bf4 {[%clk 0:02:31.7]} 10... O-O {[%clk 0:02:48.2]} 11. Nd2 {[%clk 0:02:30.2]}
11... c6 {[%clk 0:02:47.1]} 12. Rfe1 {[%clk 0:02:28.9]} 12... Be6 {[%clk
0:02:39.7]} 13. a4 {[%clk 0:02:23.3]} 13... Nd7 {[%clk 0:02:35.9]} 14. Ndf3
{[%clk 0:02:17.7]} 14... Nxe5 {[%clk 0:02:28.2]} 15. Nxe5 {[%clk 0:02:18.6]}
15... Qc8 {[%clk 0:02:28.4]} 16. c3 {[%clk 0:02:13.9]} 16... Bf5 {[%clk
0:02:28]} 17. Qg3 {[%clk 0:02:14.4]} 17... Bf6 {[%clk 0:02:26.8]} 18. Ng4 {[%clk
0:02:11.8]} 18... Bxg4 {[%clk 0:02:26.4]} 19. Qxg4 {[%clk 0:02:10.1]} 19... Qxg4
{[%clk 0:02:26.6]} 20. hxg4 {[%clk 0:02:11]} 20... Rfe8 {[%clk 0:02:27.2]} 21.
f3 {[%clk 0:02:05.6]} 21... h6 {[%clk 0:02:22.8]} 22. Kf2 {[%clk 0:02:04]} 22...
g5 {[%clk 0:02:17]} 23. Bd2 {[%clk 0:02:02.5]} 23... Kg7 {[%clk 0:02:14.4]} 24.
Rxe8 {[%clk 0:01:58.5]} 24... Rxe8 {[%clk 0:02:15.3]} 25. Re1 {[%clk 0:01:58.9]}
25... Rb8 {[%clk 0:02:15.5]} 26. Ra1 {[%clk 0:01:43.8]} 26... Kg6 {[%clk
0:02:09.8]} 27. a5 {[%clk 0:01:37.1]} 27... Be7 {[%clk 0:02:01.1]} 28. b4 {[%clk
0:01:34.5]} 28... Bd6 {[%clk 0:01:59.9]} 29. Ra2 {[%clk 0:01:31.8]} 29... Rh8
{[%clk 0:01:52.3]} 30. Ra1 {[%clk 0:01:27.1]} 30... h5 {[%clk 0:01:52.6]} 31.
Rh1 {[%clk 0:01:23.7]} 31... h4 {[%clk 0:01:50.8]} 32. Ke2 {[%clk 0:01:19]}
32... f5 {[%clk 0:01:49.1]} 33. gxf5+ {[%clk 0:00:45]} 33... Kxf5 {[%clk
0:01:50]} 34. g4+ {[%clk 0:00:45.5]} 34... Kg6 {[%clk 0:01:44.9]} 35. Rh3 {[%clk
0:00:45.4]} 35... Bg3 {[%clk 0:01:43]} 36. Kd3 {[%clk 0:00:41.8]} 36... Re8
{[%clk 0:01:42.2]} 37. Rh1 {[%clk 0:00:41.8]} 37... Rf8 {[%clk 0:01:41.6]} 38.
Ke2 {[%clk 0:00:39.9]} 38... Re8+ {[%clk 0:01:38.6]} 39. Kd3 {[%clk 0:00:39.8]}
39... Kf6 {[%clk 0:01:39.3]} 40. Be3 {[%clk 0:00:32.9]} 40... Rh8 {[%clk
0:01:34.1]} 41. Rh3 {[%clk 0:00:30.9]} 41... Rh7 {[%clk 0:01:33.1]} 42. Bd2
{[%clk 0:00:29.8]} 42... Kg6 {[%clk 0:01:33.3]} 43. Be3 {[%clk 0:00:29.6]} 43...
Re7 {[%clk 0:01:28.8]} 44. Bd2 {[%clk 0:00:29.6]} 44... Bf2 {[%clk 0:01:28.7]}
45. Rh1 {[%clk 0:00:27.8]} 45... Rf7 {[%clk 0:01:21.1]} 46. Rh3 {[%clk
0:00:27.3]} 46... Bg3 {[%clk 0:01:20.8]} 47. Ke2 {[%clk 0:00:27]} 47... Bf4
{[%clk 0:01:18.1]} 48. Bxf4 {[%clk 0:00:24.7]} 48... Rxf4 {[%clk 0:01:19]} 49.
Ke3 {[%clk 0:00:23.9]} 49... Rf7 {[%clk 0:01:19.4]} 50. Rh1 {[%clk 0:00:23.1]}
50... Re7+ {[%clk 0:01:19]} 51. Kd3 {[%clk 0:00:18.8]} 51... Kf6 {[%clk
0:01:18.3]} 52. f4 {[%clk 0:00:16.8]} 52... Re4 {[%clk 0:01:18.6]} 53. fxg5+
{[%clk 0:00:14.5]} 53... Kxg5 {[%clk 0:01:19.5]} 54. Rf1 {[%clk 0:00:14.8]}
54... Re7 {[%clk 0:01:16.2]} 55. Rg1 {[%clk 0:00:14.9]} 55... h3 {[%clk
0:01:16.6]} 56. Kd2 {[%clk 0:00:13]} 56... Kh4 {[%clk 0:01:16.9]} 57. g5 {[%clk
0:00:12.9]} 57... h2 {[%clk 0:01:17.4]} 58. Rh1 {[%clk 0:00:13.2]} 58... Kg3
{[%clk 0:01:17.9]} 59. g6 {[%clk 0:00:09.3]} 59... Kg2 {[%clk 0:01:17.9]} 60.
Re1 {[%clk 0:00:09.2]} 60... Rxe1 {[%clk 0:01:16.8]} 61. g7 {[%clk 0:00:09.8]}
61... Re8 {[%clk 0:01:13.7]} 62. g8=Q+ {[%clk 0:00:10.7]} 0-1